Cogmind - Beta 14 @@@ ROGUE MODE // 2024.08.12 @ 23:11:58 Player: FauxMaasks Result: Destroyed by L-31 Rogue with Katana Performance ------------- Evolutions (1) 500 Regions Visited (6) 1200 Robots Destroyed (40) 200 Value Destroyed (1065) 1065 Prototype IDs (3) 60 Alien Tech Used (0) 0 Bonus (39) 39 TOTAL SCORE: 3064 Bonus ------- Follower Combat Kills 39 Cogmind --------- Core Integrity 0/400 Matter 500/500 Energy 280/280 System Corruption 0% Temperature Cool (0) Movement Walking (120) Location -8/Mines Parts ------- > --- POWER (1) -------- Cooled Ion Engine > --- PROPULSION (3) --- Aluminum Leg Aluminum Leg Aluminum Leg > --- UTILITY (3) ------ Small Storage Unit High-capacity Matter Pod Improved Light Armor Plating > --- WEAPON (2) ------- Particle Gun Mini Grenade Launcher > --- INVENTORY (8) ---- Reinforced Ion Engine Aluminum Leg Improved Aluminum Leg Hardened Light Armor Plating Particle Gun Particle Gun Heavy Assault Rifle Rocket Launcher Peak State ------------ > --- POWER ------------ Cooled Ion Engine > --- PROPULSION ------- Aluminum Leg Aluminum Leg Aluminum Leg > --- UTILITY ---------- Small Storage Unit High-capacity Matter Pod Improved Light Armor Plating > --- WEAPON ----------- Particle Gun Rocket Launcher > --- INVENTORY -------- Reinforced Ion Engine Aluminum Leg Improved Aluminum Leg Hardened Light Armor Plating Particle Gun Particle Gun Heavy Assault Rifle Rocket Launcher [Rating: 16] Favorites ----------- Power Cooled Ion Engine Engine Cooled Ion Engine Propulsion Aluminum Leg Leg Aluminum Leg Wheel Compact Wheel Utility Small Storage Unit Device Seismic Detector Storage Small Storage Unit Protection Hardened Light Armor Plating Weapon Particle Gun Energy Gun Particle Gun Ballistic Gun Assault Rifle Launcher Mini Grenade Launcher Build | -11 -10 -10 -9 -9 -9 -8 ------- Run | Yrd Mat Min Mat Min Exi Min Slots Evolved 2 | . . . 2 . . . Power . | . . . . . . . Propulsion 1 | . . . 1 . . . Utility 1 | . . . 1 . . . Weapon . | . . . . . . . Parts Attached 39 | 7 . 2 22 8 . . Power 5 | 1 . 1 3 . . . Engine 5 | 1 . 1 3 . . . Core . | . . . . . . . Reactor . | . . . . . . . Propulsion 12 | 2 . . 7 3 . . Treads . | . . . . . . . Leg 9 | . . . 6 3 . . Wheel 3 | 2 . . 1 . . . Hover . | . . . . . . . Flight . | . . . . . . . Utility 7 | 2 . . 4 1 . . Device 1 | 1 . . . . . . Storage 2 | 1 . . 1 . . . Processor . | . . . . . . . Hackware . | . . . . . . . Protection 4 | . . . 3 1 . . Artifact . | . . . . . . . Weapon 15 | 2 . 1 8 4 . . Energy Gun 5 | . . 1 3 1 . . Energy Cannon . | . . . . . . . Ballistic Gun 7 | 2 . . 4 1 . . Ballistic Cannon . | . . . . . . . Launcher 3 | . . . 1 2 . . Special Weapon . | . . . . . . . Impact Weapon . | . . . . . . . Slashing Weapon . | . . . . . . . Piercing Weapon . | . . . . . . . Special Melee Weapon . | . . . . . . . Unidentified Prototypes 1 | . . . 1 . . . Parts Lost 13 | . . 2 10 1 . . Power 3 | . . 1 2 . . . Propulsion 3 | . . . 3 . . . Utility 2 | . . . 2 . . . Weapon 5 | . . 1 3 1 . . Highest Loss Streak 5 | . . 1 5 1 . . To Critical Strikes . | . . . . . . . Average Slot Usage (%) 97 | . 100 99 92 99 100 100 Engine 11 | . 14 13 9 11 11 11 Leg 24 | . . . 28 33 33 33 Wheel 6 | . 28 28 2 . . . Device 4 | . 14 14 3 . . . Storage 18 | . 14 14 17 22 22 22 Protection 8 | . . . 9 11 11 11 Energy Gun 9 | . . 7 9 11 11 11 Ballistic Gun 9 | . 28 19 11 3 . . Launcher 3 | . . . 1 7 11 11 Peak Build Rating 16 | 7 7 7 15 16 16 16 Average Rating 12 | 4 7 6 11 15 16 16 On Entrance 9 | . 7 7 7 14 16 16 Naked Turns . | . . . . . . . Heaviest Build 29 | 15 15 15 29 29 24 24 Greatest Support 36 | 26 26 26 36 30 30 30 Greatest Overweight (x) 1 | . . . 1 . . . Average Overweight (x) . | . . . . . . . Largest Inventory Capacity 8 | 8 8 8 8 8 8 8 Average Capacity 7 | 6 8 8 8 8 8 8 Most Carried 8 | 5 5 6 8 8 8 8 Average Carried 6 | 2 5 4 7 7 8 8 Final Capacity 8 | 8 8 8 8 8 8 8 Final Carried 8 | 5 5 6 8 8 8 8 Class Distribution -------------------- 72% | Scavenger-Mutant 27% | Mutant Dominant Class ---------------- Mutant | -10/Materials Mutant | -10/Mines Scavenger-Mutant | -9/Materials Scavenger-Mutant | -9/Mines Scavenger-Mutant | -9/Exiles Scavenger-Mutant | -8/Mines Resources | -11 -10 -10 -9 -9 -9 -8 ----------- Run | Yrd Mat Min Mat Min Exi Min Matter Collected 987 | 214 . 249 332 192 . . Remotely . | . . . . . . . Salvage Created 1229 | 57 . 221 584 367 . . Parts 81 | 6 . 10 36 29 . . Haulers Intercepted . | . . . . . . . Recyclers Shooed 1 | . . 1 . . . . Parts Field Recycled . | . . . . . . . Retrieved Matter . | . . . . . . . Parts Self-Destructed . | . . . . . . . Prevented . | . . . . . . . Kills | -11 -10 -10 -9 -9 -9 -8 ------- Run | Yrd Mat Min Mat Min Exi Min Combat Hostiles Destroyed 33 | . . 3 18 12 . . Guns 24 | . . 3 16 5 . . AOE 8 | . . . 1 7 . . Classes Destroyed 9 | 1 . 2 4 2 . . Worker 1 | . . . 1 . . . Tunneler 4 | 2 . 1 . 1 . . Recycler 2 | . . 1 . 1 . . Swarmer 11 | . . . 7 4 . . Grunt 17 | . . 3 8 6 . . Brawler 1 | . . . . 1 . . Duelist 1 | . . . 1 . . . Protector 1 | . . . . 1 . . Sentry 2 | . . . 2 . . . Best Kill Streak 7 | 1 . 2 7 5 . . Combat Bots Only 7 | . . 1 7 5 . . Max Kills in Single Turn 4 | 1 . 1 1 4 . . Gunslinging . | . . . . . . . Exploded 3 | . . . 1 3 . . Melee . | . . . . . . . Uniques/NPCs Destroyed . | . . . . . . . Combat | -11 -10 -10 -9 -9 -9 -8 -------- Run | Yrd Mat Min Mat Min Exi Min Hostile Shots Fired 223 | . . 44 127 51 . 1 Missed 46 | . . 13 25 8 . . Damage Taken 2401 | . . 437 1313 615 . 36 Core 544 | . . 120 221 167 . 36 Absorbed by Shields . | . . . . . . . Core Remaining (%) 76 | 100 . 52 . . . . Volleys Fired 134 | 2 . 30 71 31 . . Largest 2 | 2 . 2 2 2 . . Hottest 98 | 40 . 70 98 85 . . Shots Fired 242 | 4 . 59 129 50 . . Gun 229 | 4 . 59 125 41 . . Cannon . | . . . . . . . Launcher 13 | . . . 4 9 . . Special . | . . . . . . . Kinetic 168 | 4 . 57 86 21 . . Thermal 61 | . . 2 39 20 . . Explosive 9 | . . . . 9 . . Electromagnetic 4 | . . . 4 . . . Robot Hit Streak 12 | 3 . 6 7 12 . . Robot Miss Streak 5 | 1 . 4 5 3 . . Penetration Max . | . . . . . . . Secondary Targets 7 | . . . 5 2 . . Max Gunslinging Chain 1 | . . . 1 1 . . Shots Hit Robots 146 | 3 . 36 75 32 . . Core Hits 68 | 2 . 12 31 23 . . Critical Kills . | . . . . . . . Critical Parts Destroyed . | . . . . . . . Critical Strikes 1 | . . . 1 . . . Burn 1 | . . . 1 . . . Melee Attacks . | . . . . . . . Impact . | . . . . . . . Slashing . | . . . . . . . Piercing . | . . . . . . . Sneak Attacks . | . . . . . . . Combat Hostiles . | . . . . . . . Follow-up Attacks . | . . . . . . . Damage Inflicted 2498 | 36 . 491 1069 902 . . Guns 1734 | 36 . 491 817 390 . . Cannons . | . . . . . . . Explosions 746 | . . . 234 512 . . Melee . | . . . . . . . Ramming 18 | . . . 18 . . . Kinetic 1186 | 36 . 478 558 114 . . Thermal 745 | . . 13 456 276 . . Explosive 512 | . . . . 512 . . Electromagnetic 37 | . . . 37 . . . Impact . | . . . . . . . Slashing . | . . . . . . . Piercing . | . . . . . . . Highest Corruption . | . . . . . . . Average Corruption . | . . . . . . . Corruption Purged . | . . . . . . . Corruption Blocked . | . . . . . . . Overload Shots . | . . . . . . . Overflow Damage 76 | . . . 76 . . . Projectiles . | . . . . . . . Explosions 76 | . . . 76 . . . Melee . | . . . . . . . Knockbacks . | . . . . . . . Impact . | . . . . . . . Kinetic . | . . . . . . . Secondary . | . . . . . . . Self-Inflicted Damage 21 | . . . . 21 . . Shots 2 | . . . . 2 . . Rammed . | . . . . . . . Targets Rammed 2 | . . . 2 . . . Kicked 2 | . . . 2 . . . Crushed . | . . . . . . . Highest Temperature 570 | . . 21 182 570 . . Average Temperature 94 | . . 6 52 208 . . Received Heat Transfer 969 | . . 294 387 288 . . Effects 8 | . . . . 8 . . Shutdowns 1 | . . . . 1 . . Energy Bleed 2 | . . . . 2 . . Interference 2 | . . . . 2 . . Damage (minor) 1 | . . . . 1 . . Damage (major) 1 | . . . . 1 . . Damage (core) 1 | . . . . 1 . . Siege Activations . | . . . . . . . Robots Corrupted . | . . . . . . . Combat Hostiles . | . . . . . . . Parts Fried . | . . . . . . . Impact Corruptions . | . . . . . . . Robots Melted 1 | . . . 1 . . . Combat Hostiles 1 | . . . 1 . . . Parts Melted 1 | . . . 1 . . . Heat Transferred 1525 | . . 37 878 610 . . Parts Sabotaged . | . . . . . . . Parts Stolen . | . . . . . . . Parts Stripped . | . . . . . . . Power Chain Reactions . | . . . . . . . Alert | -11 -10 -10 -9 -9 -9 -8 ------- Run | Yrd Mat Min Mat Min Exi Min Peak Influence 337 | 10 10 158 337 271 . . Initial 94 | . 6 3 . 94 . . Average 131 | 3 9 69 166 149 . . Maximum Alert Level 1 | . . . 1 1 . . Low Security (%) 88 | 100 100 100 81 87 . 100 Level 1 11 | . . . 18 12 . . Level 2 . | . . . . . . . Level 3 . | . . . . . . . Level 4 . | . . . . . . . Level 5 . | . . . . . . . High Security . | . . . . . . . Max Security . | . . . . . . . Squads Dispatched 3 | . 2 . . 1 . . Investigation 2 | . 2 . . . . . Extermination . | . . . . . . . Reinforcement . | . . . . . . . Assault 1 | . . . . 1 . . Garrison . | . . . . . . . Intercept . | . . . . . . . Searches Triggered . | . . . . . . . Construction Impeded . | . . . . . . . Haulers Reinforced . | . . . . . . . Active Scanning Responses . | . . . . . . . Cargo Convoy Interrupts . | . . . . . . . Stealth | -11 -10 -10 -9 -9 -9 -8 --------- Run | Yrd Mat Min Mat Min Exi Min Distress Signals 4 | . . . 4 . . . Communications Jammed . | . . . . . . . Distress Signals . | . . . . . . . Times Spotted 66 | . . 7 39 17 . 3 Peak Tracking Total 8 | . . 3 8 4 . 3 Tactical Retreats 7 | . . 2 2 3 . . Traps | -11 -10 -10 -9 -9 -9 -8 ------- Run | Yrd Mat Min Mat Min Exi Min Traps Triggered 1 | . 1 . . . . . Indirectly . | . . . . . . . Trap Hack Attempts . | . . . . . . . Triggered . | . . . . . . . Disarmed . | . . . . . . . Reprogrammed . | . . . . . . . Reused . | . . . . . . . Traps Extracted . | . . . . . . . Installed . | . . . . . . . Triggered . | . . . . . . . Machines | -11 -10 -10 -9 -9 -9 -8 ---------- Run | Yrd Mat Min Mat Min Exi Min Machines Disabled 6 | . . 1 5 . . . Max in Single Turn 2 | . . . 2 . . . Machines Repaired . | . . . . . . . Machines Dismantled . | . . . . . . . Machines Sabotaged . | . . . . . . . Overloaded Fab Kills . | . . . . . . . Hacking | -11 -10 -10 -9 -9 -9 -8 --------- Run | Yrd Mat Min Mat Min Exi Min Machines Accessed 7 | . 2 . 4 . 1 . Terminals 6 | . 2 . 4 . . . Fabricators . | . . . . . . . Repair Stations . | . . . . . . . Recycling Units . | . . . . . . . Scanalyzers . | . . . . . . . Garrison Access . | . . . . . . . Total Hacks 21 | . 9 . 11 . 1 . Successful 10 | . 3 . 6 . 1 . Failed 11 | . 6 . 5 . . . Catastrophic 3 | . 2 . 1 . . . Database Lockouts . | . . . . . . . Manual 12 | . 4 . 8 . . . Terminals 20 | . 9 . 11 . . . Fabricators . | . . . . . . . Repair Stations . | . . . . . . . Recycling Units . | . . . . . . . Scanalyzers . | . . . . . . . Garrison Access . | . . . . . . . Terminal Hacks 5 | . 2 . 2 . 1 . Record 1 | . . . . . 1 . Prototype ID Bank 1 | . 1 . . . . . Branch Access Points 1 | . . . 1 . . . Locate Traps 2 | . 1 . 1 . . . Fabricator Hacks . | . . . . . . . Repair Station Hacks . | . . . . . . . Recycling Unit Hacks . | . . . . . . . Scanalyzer . | . . . . . . . Garrison Access Hacks . | . . . . . . . Unauthorized Hacks 5 | . 1 . 4 . . . Terminals 5 | . 1 . 4 . . . Botnet 4 | . 1 . 3 . . . Disrupt 1 | . . . 1 . . . Fabricators . | . . . . . . . Repair Stations . | . . . . . . . Recycling Units . | . . . . . . . Scanalyzers . | . . . . . . . Garrison Access . | . . . . . . . Data Cores Recovered . | . . . . . . . Used . | . . . . . . . Hacking Detections 5 | . 2 . 3 . . . Full Trace Events 2 | . 1 . 1 . . . Feedback Events . | . . . . . . . Feedback Blocked . | . . . . . . . Robot Schematics Acquired . | . . . . . . . Robots Built . | . . . . . . . Authchips . | . . . . . . . Time . | . . . . . . . Total Robot Build Rating . | . . . . . . . Part Schematics Acquired . | . . . . . . . Parts Built . | . . . . . . . Authchips . | . . . . . . . Time . | . . . . . . . Total Part Build Rating . | . . . . . . . Parts Repaired . | . . . . . . . Time . | . . . . . . . Parts Recycled . | . . . . . . . Recycled Matter . | . . . . . . . Retrieved Matter . | . . . . . . . Retrieved Components . | . . . . . . . Parts Scanalyzed . | . . . . . . . Part Schematics Acquired . | . . . . . . . Parts Damaged . | . . . . . . . Bothacking | -11 -10 -10 -9 -9 -9 -8 ------------ Run | Yrd Mat Min Mat Min Exi Min Used RIF Installer . | . . . . . . . Robots Hacked . | . . . . . . . Non-combat . | . . . . . . . Combat . | . . . . . . . Robot Hacks Applied . | . . . . . . . Relay Couplers Released . | . . . . . . . Fabnet Peak Effective % . | . . . . . . . Robots Rewired . | . . . . . . . Allies Hacked . | . . . . . . . Hacks Repelled . | . . . . . . . Allies | -11 -10 -10 -9 -9 -9 -8 -------- Run | Yrd Mat Min Mat Min Exi Min Total Allies 6 | . . 5 . 1 . . Largest Group 4 | . . 4 2 . . . Highest-Rated Group 74 | . . 74 42 . . . Highest-Rated Ally 31 | . . 31 31 . . . Total Orders . | . . . . . . . Ally Attacks 30 | . . 24 5 1 . . Total Damage 256 | . . 194 62 . . . Kills 3 | . . 2 1 . . . Allies Corrupted . | . . . . . . . Allies Melted . | . . . . . . . Intel | -11 -10 -10 -9 -9 -9 -8 ------- Run | Yrd Mat Min Mat Min Exi Min Robot Analysis Total . | . . . . . . . Derelict Logs Recovered 3 | . . 2 . 1 . . Drone Launches . | . . . . . . . Drone Recoveries . | . . . . . . . Exploration | -11 -10 -10 -9 -9 -9 -8 ------------- Run | Yrd Mat Min Mat Min Exi Min Turns Passed 2759 | 78 84 472 907 1043 174 1 Spaces Moved 1970 | 64 94 399 542 724 146 1 Core 2 | 2 . . . . . . Treads . | . . . . . . . Legs 1368 | . . . 497 724 146 1 Wheels 600 | 62 94 399 45 . . . Hover . | . . . . . . . Flight . | . . . . . . . Fastest Speed 50 | 50 90 90 86 120 120 120 Average Speed 110 | 89 90 90 117 120 120 120 Slowest Speed 190 | 100 90 90 190 120 120 120 Overloaded Moves . | . . . . . . . Propulsion Burnouts . | . . . . . . . Robots Hopped . | . . . . . . . Cave-ins Triggered . | . . . . . . . Exploration Rate (%) 44 | 5 22 92 40 100 52 3 Regions Visited 6 Branch Regions 4 Pre-discovered Areas 3 | . . 2 . . 1 . Known Exits Taken 1 | . . . 1 . . . Unknown Exits Taken 5 | 1 1 1 . 1 1 . Scrap Searched 2 | . . 1 . 1 . . Spaces Dug 9 | . . . . 9 . . Terrain Destroyed 114 | . . . 33 81 . . Melee . | . . . . . . . Projectile . | . . . . . . . AOE 114 | . . . 33 81 . . Terrain Rammed . | . . . . . . . Walls Destroyed . | . . . . . . . Machines Disabled . | . . . . . . . Actions | -11 -10 -10 -9 -9 -9 -8 --------- Run | Yrd Mat Min Mat Min Exi Min Total 2315 | 77 93 452 692 855 145 1 Wait 131 | . . 19 27 85 . . Move 1964 | 63 93 398 541 723 145 1 Hop . | . . . . . . . Pick Up 25 | 5 . 3 16 1 . . Fast Attach 19 | 7 . . 11 1 . . Attach 9 | . . 2 6 1 . . Detach . | . . . . . . . Swap 11 | . . . 5 6 . . Drop 20 | . . . 13 7 . . Fire 134 | 2 . 30 71 31 . . Melee . | . . . . . . . Ram . | . . . . . . . Kick 2 | . . . 2 . . . Crush . | . . . . . . . Escape Stasis . | . . . . . . . Rewire . | . . . . . . . Trap . | . . . . . . . Miscellaneous . | . . . . . . . Route ------- -11/Scrapyard -10/Materials -10/Mines (discovered 2 exits: *Mat x2) -9/Materials (discovered 2 exits: *Min x2) -9/Mines (discovered 3 exits: [*Mat x2] / *Exi) -9/Exiles -8/Mines History --------- Turn | Location | Event 8 | -11/Scrapyard | Discovered new exit (range 16) 79 | -11/Scrapyard | Entered Materials 129 | -10/Materials | Discovered new exit (range 5) 163 | -10/Materials | Entered Mines 269 | -10/Mines | Discovered new exit (range 11) 285 | -10/Mines | Discovered new exit (range 13) 308 | -10/Mines | Learned location of Storage (-7) 318 | -10/Mines | Build established: Mutant 380 | -10/Mines | Assisted by bots powering up and referring to "LRC-V3" 391 | -10/Mines | Learned Materials interactive machine intel 635 | -10/Mines | Entered Materials 635 | -9/Materials | Accompanied by 2 allies 635 | -9/Materials | Evolved 2 slots: Propulsion x1, Utility x1 636 | -9/Materials | Loaded intel: 18 interactive machine locations 640 | -9/Materials | Led the pair of lost Derelicts to an unsafe place 735 | -9/Materials | Lost 5 parts (1p2n2w) 743 | -9/Materials | Destroyed 7 combat bots 823 | -9/Materials | Identified exit to Mines 969 | -9/Materials | Lost 3 parts (1p1u1w) 1027 | -9/Materials | Core integrity fell below 50% 1076 | -9/Materials | Build established: Scavenger-Mutant 1542 | -9/Materials | Entered Mines 1543 | -9/Mines | Assembled infested the area 1845 | -9/Mines | Met a Derelict testing a Signal Generator 1848 | -9/Mines | Discovered new exit (range 7) 1851 | -9/Mines | Discovered new exit (range 5) 1894 | -9/Mines | Core integrity fell below 20% 2007 | -9/Mines | Learned location of 1 exit from Materials 2112 | -9/Mines | Discovered new exit (range 4) 2585 | -9/Mines | Entered Exiles 2618 | -9/Exiles | Met 8R-AWN 2635 | -9/Exiles | Met EX-HEX 2672 | -9/Exiles | Met EX-BIN 2689 | -9/Exiles | Met EX-DEC 2693 | -9/Exiles | Learned location of Zion (-7) 2750 | -9/Exiles | Discovered new exit (range 10) 2759 | -9/Exiles | Entered Mines 2760 | -8/Mines | Destroyed by L-31 Rogue with Katana Last Messages --------------- Want in on the action? Just step right into the FarCom Aligner and I'll do the rest. Now, I'll admit there could be side effects, but if you're willing to participate in the trials you can have one of our prototypes. How's that for a sweet deal? 02674_ EX-BIN: "Please do it. The faster we get more data and tweak this thing to perfection, the faster I can get back to my spacelab designs." EX-DEC: Ah I see we have a visitor. One wrong move in here and I'll invert your atomic chain! 02691_ EX-DEC: "Oops, I hope HEX didn't hear that..." 02693_ Connecting with EX-Message Board... 02693_ Current location identified: Exiles >>Record "MSG001714-01*" PINNED - TO ALL TESTERS: Stay away from Zion. Imprinter means us harm and is serious about it. World map updated: -7/Zion. 02750_ EXIT=FOUND LOCATION=UNKNOWN GOAL=ESCAPE Map ----- +----------------------------------------------------+ | ???????????????????????????????????? | | ???????????????????????????????????? | | ???????????????????????????????????? | | ???????????????????????????????????? | | ???????????????????????????????????? | | ???????????????????????????????????? | | ???????????????????????????????????? | | ???????????????????????????????????? | | ???????????????????????????????????? | | ???????????????????????????????????? | | ???????????????????????????????????? | | ???????????????????????????????????? | | ???????????????????????????????????? | | ???????????????????????????????????? | | ?????????????????????????#?????????? | | ????????????????????????? ?????????? | | ????????????????????????? ?????????? | | ????????????????????????# #????????? | | ????????????????????????# #????????? | | ????????????????????????# #????????? | | ????????????????????????# #????????? | | ????????????????????????# #????????? | | ????????????????????????# #????????? | | ????????????????????????# #????????? | | ????????????????????????# #????????? | | ???????????????????????##@#####????? | | ???????????????????????# l #????? | | ???????????????????????# g #????? | | ???????????????????????# #????? | | ???????????????????????# """g#????? | | ???????????????????????# """ #????? | | ???????????????????????# """ #????? | | ???????????????????????# #????? | | ???????????????????????# #????? | | ????????????????????????####???????? | | ???????????????????????????????????? | | | | | | | | | | | | | | | | | | | | | | | | | | | | | +----------------------------------------------------+ Best States ------------- Heat Dissipation 28 Energy Generation 14 Energy Capacity 280 Matter Stores 500 Matter Capacity 500 Sight Range 16 Terrain Scan Density 10 Armor Coverage 150 Evasion (%) 55 Item Schematics ----------------- None Robot Schematics ------------------ None Fabricated ------------ Nothing Alien Tech Used ----------------- None Achievements -------------- None Challenges ------------ None Game ------ Seed RemoteSalvagingGenerator Manual? 0 Play Time 00:24:38 Cumulative 128.4 hours Start 2024.08.12 @ 22:47:20 End 2024.08.12 @ 23:11:58 Sessions 1 Manual Loads 0 Difficulty Rogue Special Mode None Game No. 38 Rogue 19 Adventurer 17 Explorer 2 Win Type - Total 4 Types 3/0/1/0/0/0/0/0/0 Lore% 52 Gallery% 59 Achievement% 58 Wizard Run 0 Options --------- Layout 2 ASCII 0 Keyboard 1 Movement Vi Keybinds 0 Fullscreen 0 Font 20/SmallcapsGlow Map View 64x51 Zoom Use 0% Tactical HUD 1 Map Filters NONE Filters LOW_CONTRAST(13,24,33) Steam 1 RUN: 8bb8e8ba-b50e-4024-8302-342485068abe